fUSD/lending_fUSD_20240318
["ID","MTS","AMOUNT","RATE_DAILY","PERIOD"]
[319446322,1710762637908,-200.0,0.00019741,2]
[319446323,1710762637917,-352.5,0.00019792,2]
[319446324,1710762637932,-1052.4753608,0.00019798,2]
[319446325,1710762637983,-2182.13279702,0.00019799,2]
[319446326,1710762637993,-16835.8072,0.000198,2]
[319446327,1710762638002,-3978.35264852,0.000198,2]
[319446328,1710762638060,-68374.0,0.000198,2]
[319446330,1710762638144,-343.01810887,0.000198,2]
[319446332,1710762639644,-2008.7510398,0.000198,2]
[319446333,1710762639656,-4251.65983908,0.000198,2]
[319446334,1710762639704,-200002.15184163,0.000198,2]
[319446335,1710762639815,-631.74887468,0.000198,2]
[319446336,1710762639871,-2733.16,0.000198,2]
[319446350,1710762642596,-478.6711612,0.000198,2]
[319446359,1710762642654,-11785.70117294,0.000198,2]
[319446363,1710762642666,-2540.1824145,0.000198,2]
[319446366,1710762642679,-1166.21305791,0.000198,2]
[319446368,1710762642692,-2072.6,0.000198,2]
[319446372,1710762642721,-679.70203805,0.000198,2]
[319446379,1710762642771,-2271.55411525,0.000198,2]
[319446385,1710762642831,-1011.60970559,0.000198,2]
[319446386,1710762642842,-5021.50080006,0.000198,2]
[319446387,1710762642891,-478.6711612,0.000198,2]
[319446388,1710762642955,-352.9525996,0.000198,2]
[319446399,1710762646487,-500.0,0.00019799,2]
[319446400,1710762646496,-7033.42249448,0.000198,2]
[319446401,1710762646506,-265.23565399,0.000198,2]
[319446402,1710762646515,-241.3555659,0.00019897,2]
[319446403,1710762646524,-1263.13270038,0.00019898,2]
[319446404,1710762646533,-422.08386387,0.00019898,2]
[319446405,1710762646542,-2047.89614,0.00019898,2]
[319446406,1710762646551,-202.74751577,0.00019899,2]
[319446407,1710762646560,-202.74240357,0.00019899,2]
[319446408,1710762646569,-156.95529,0.00019899,2]
[319446409,1710762646580,-719.75786743,0.00019899,2]
[319446410,1710762646590,-394.58101345,0.00019899,2]
[319446411,1710762646599,-807.37616,0.00019899,2]
[319446412,1710762646609,-10345.71333016,0.000199,5]
[319446413,1710762646693,-50.09269996,0.000199,5]
[319446414,1710762646704,-46378.98944715,0.000199,5]
[319446415,1710762646716,-5663.1639147,0.000199,5]
[319446416,1710762646731,-3182.827847,0.000199,5]
[319446417,1710762646742,-255.97036143,0.000199,5]
[319446418,1710762646762,-17998.75947883,0.000199,5]
[319446419,1710762646784,-974.71539651,0.000199,5]
[319446420,1710762646795,-4349.414466,0.000199,5]
[319446424,1710762693331,164.31,0.0001,2]
[319446425,1710762693360,250.84695532,0.0001,2]
[319446426,1710762698125,3697.08093297,0.00011,2]
[319446427,1710762703969,277.01513352,0.00010999,2]
[319446429,1710762799934,241.14057685,0.000101,2]
[319446430,1710762854498,-420.96689591,0.00013593,2]
[319446431,1710762854531,-535.31108494,0.00013693,2]
[319446432,1710762854563,-4376.12180604,0.00013693,2]
[319446433,1710762854593,-360.57329219,0.00013694,2]
[319446434,1710762854624,-230.0,0.00013698,2]
[319446435,1710762854654,-151.32363821,0.000139,2]
[319446436,1710762854684,-540.69315552,0.000139,2]
[319446437,1710762854715,-157.69426884,0.000139,2]
[319446438,1710762854747,-155.38360784,0.00013998,2]
[319446439,1710762854777,-199.1651066,0.00013998,2]
[319446440,1710762854807,-483.97095684,0.00013998,2]
[319446441,1710762854837,-277.17109592,0.00013998,2]
[319446442,1710762854868,-2478.18429634,0.00013998,2]
[319446443,1710762854898,-679.75875243,0.00013999,2]
[319446444,1710762854928,-330.20511168,0.00014,3]
[319446445,1710762854961,-88623.4769307,0.00014,2]
[319446446,1710762889528,-356.58,0.00013,2]
[319446447,1710762889560,-158.22947534,0.00013594,2]
[319446448,1710762889589,-221.0,0.00013835,2]
[319446449,1710762889618,-189.40816684,0.000139,2]
[319446450,1710762889646,-2494.37103848,0.000139,2]
[319446451,1710762889679,-411.7806429,0.00013998,2]
[319446452,1710762889708,-359.95676107,0.00013999,2]
[319446453,1710762889739,-4175.91242395,0.00013999,2]
[319446454,1710762889771,-216.76534267,0.00013999,2]
[319446455,1710762889801,-165.10255584,0.00014,3]
[319446456,1710762889832,-91250.89359291,0.00014,2]
[319446457,1710762913066,-302.2003,0.000139,2]
[319446458,1710762913099,-99697.7997,0.00014,2]
[319446459,1710762925607,-100000.0,0.00014,2]
[319446460,1710762935401,-165.10255583,0.00014,3]
[319446461,1710762935434,-99834.89744417,0.00014,2]
[319446462,1710762958870,-100000.0,0.00014,2]
[319446463,1710762970771,-100000.0,0.00014,2]
[319446464,1710762974567,-100000.0,0.00014,2]
[319446465,1710762999639,-100000.0,0.00014,2]
[319446466,1710763047716,-7395.570591,0.000139,2]
[319446467,1710763047750,-92604.429409,0.00014,2]
[319446474,1710763101435,-162.38985885,0.00013999,2]
[319446475,1710763101465,-40151.45056502,0.00013999,3]
[319446476,1710763101497,-59686.15957613,0.00014,2]
[319446477,1710763102971,-100000.0,0.00014,2]
[319446478,1710763104273,-100000.0,0.00014,2]
[319446479,1710763135407,-225.0,0.00013835,2]
[319446480,1710763135436,-41007.9011,0.000139,2]
[319446481,1710763135466,-198.79396657,0.000139,2]
[319446482,1710763135495,-1291.6112776,0.00013998,2]
[319446483,1710763135523,-253.07067739,0.00013999,2]
[319446484,1710763135551,-373.40885145,0.00013999,2]
[319446485,1710763135579,-291.01871887,0.00013999,2]
[319446486,1710763135607,-251.94917827,0.00013999,2]
[319446487,1710763135638,-56107.24622985,0.00014,2]
[319446490,1710763745131,-356.48,0.00013,2]
[319446491,1710763745152,-282.9406,0.00013298,2]
[319446493,1710763831841,-150.79595679,0.00013,2]
[319446494,1710763831851,-29.7234207,0.00013298,2]
[319446495,1710763831860,-90.77696185,0.00013699,2]
[319446496,1710763831872,-216.45966994,0.00013699,2]
[319446497,1710763831881,-250.0,0.00013699,2]
[319446498,1710763831891,-151.32363814,0.000138,2]
[319446499,1710763831901,-176.13408742,0.000138,2]
[319446500,1710763831910,-175.49704752,0.000138,2]
[319446501,1710763831919,-241.0,0.00013835,2]
[319446502,1710763831929,-150.0,0.00013888,2]
[319446503,1710763831942,-150.0,0.00013888,2]
[319446504,1710763831951,-431.34515291,0.00013889,2]
[319446505,1710763832049,-1066.82019163,0.00013889,2]
[319446506,1710763832059,-83.17980837,0.00013889,2]
[319446507,1710763832073,-1414.98553611,0.00013889,2]
[319446508,1710763832086,-1498.16534448,0.00013889,2]
[319446509,1710763832106,-1498.16534448,0.00013889,2]
[319446510,1710763832119,-1498.16534448,0.00013889,2]
[319446511,1710763832130,-1498.16534448,0.00013889,2]
[319446512,1710763832141,-1498.16534448,0.00013889,2]
[319446513,1710763832151,-1498.16534448,0.00013889,2]
[319446514,1710763832161,-65.25440173,0.00013889,2]
[319446515,1710763832176,-683.97555498,0.00013889,2]
[319446516,1710763832188,-611.73,0.00013889,2]
[319446517,1710763832200,-137.20538777,0.00013889,2]
[319446518,1710763832210,-202.20150576,0.00013889,2]
[319446519,1710763832220,-161.60313711,0.0001389,2]
[319446520,1710763832230,-163.3317181,0.00013898,2]
[319446521,1710763832239,-6089.41125126,0.000139,2]
[319446522,1710763832270,-4751.5215728,0.000139,2]
[319446523,1710763832292,-562.43544538,0.000139,2]
[319446524,1710763832306,-1122.06905376,0.000139,2]
[319446536,1710763837920,-319.709996,0.00013298,10]
[319446537,1710763837984,-757.32660804,0.00013298,10]
[319446538,1710763837993,-974519.92536403,0.000139,2]
[319446539,1710763838002,-1498.16534448,0.000139,2]
[319446540,1710763838011,-202.20150575,0.000139,2]
[319446541,1710763838022,-175.49704752,0.000139,2]
[319446542,1710763838032,-28220394.15895825,0.00014,2]
[319446543,1710763838041,-11326.46583568,0.00014,2]
[319446544,1710763838055,-406.15792888,0.00014,2]
[319446545,1710763838065,-151.32363814,0.00014813,2]
[319446546,1710763838074,-486.30407387,0.000149,2]
[319446547,1710763838083,-486.30407378,0.000149,2]
[319446548,1710763838095,-437.22950975,0.00015,2]
[319446549,1710763838104,-26681.59445224,0.00015,2]
[319446550,1710763838113,-80987.2469099,0.00015,2]
[319446551,1710763838122,-486.30407378,0.00015043,2]
[319446552,1710763838132,-414.85,0.000152,2]
[319446553,1710763838141,-770.0,0.000152,2]
[319446554,1710763838150,-241.0,0.00015342,2]
[319446556,1710763838160,-433.04,0.00015384,2]
[319446558,1710763838169,-486.30407378,0.00015614,2]
[319446560,1710763838178,-151.32363814,0.00015825,2]
[319446562,1710763838187,-193.38,0.00015928,2]
[319446564,1710763838196,-250.0,0.00015963,2]
[319446566,1710763838206,-232.18480074,0.00016,2]
[319446568,1710763838215,-2052.42,0.00016062,2]
[319446569,1710763838224,-710.3,0.00016071,2]
[319446571,1710763838233,-486.30407378,0.00016186,2]
[319446573,1710763838242,-486.30407378,0.00016757,2]
[319446575,1710763838251,-151.32363814,0.00016838,2]
[319446577,1710763838260,-241.0,0.00016849,2]
[319446578,1710763838270,-750.0,0.00017,3]
[319446579,1710763838279,-166.61,0.00017273,2]
[319446580,1710763838289,-224.57,0.00017328,2]
[319446581,1710763838298,-486.30407378,0.00017329,2]
[319446582,1710763838308,-289.7,0.00017351,2]
[319446583,1710763838317,-433.04,0.00017648,2]
[319446584,1710763838327,-452.01870967,0.000178,2]
[319446585,1710763838339,-151.32363814,0.0001785,2]
[319446586,1710763838349,-5922.95283526,0.0001788,2]
[319446587,1710763838359,-486.30407378,0.000179,2]
[319446588,1710763838368,-710.3,0.0001808,2]
[319446589,1710763838378,-241.0,0.00018356,2]
[319446590,1710763838387,-486.30407378,0.00018471,2]
[319446591,1710763838396,-17217.49241712,0.000187,2]
[319446592,1710763838405,-7135.78912173,0.000188,3]
[319446593,1710763838415,-2052.42,0.00018801,2]
[319446594,1710763838424,-151.32363814,0.00018863,2]
[319446595,1710763838433,-32343.79272236,0.000189,2]
[319446596,1710763838442,-800.0,0.00019,3]
[319446597,1710763838451,-300.0,0.00019009,2]
[319446598,1710763838460,-922.57,0.00019041,2]
[319446599,1710763838469,-404.26,0.00019041,2]
[319446600,1710763838478,-486.30407378,0.00019043,2]
[319446601,1710763838487,-187.2,0.00019069,2]
[319446602,1710763838496,-323.04923925,0.00019178,2]
[319446603,1710763838506,-158.09,0.00019178,2]
[319446604,1710763838514,-180.0,0.00019288,2]
[319446605,1710763838523,-12475.13117813,0.000195,2]
[319446606,1710763838533,-2006.57851011,0.000195,2]
[319446607,1710763838542,-289.7,0.0001952,2]
[319446608,1710763838551,-1000.0,0.00019531,2]
[319446609,1710763838560,-486.30407378,0.00019614,2]
[319446610,1710763838569,-699.21288802,0.00019628,2]
[319446611,1710763838578,-8502.39227662,0.000197,2]
[319446638,1710763839953,-150.0,0.00019518,2]
[319446639,1710763839962,-2706.75616848,0.000197,2]
[319446640,1710763839973,-8308.89007289,0.000197,2]
[319446641,1710763839983,-159.89427708,0.000197,2]
[319446642,1710763839993,-860.4319,0.000197,2]
[319446644,1710763840001,-105.97111286,0.000197,2]
[319446797,1710763842960,-186.02471017,0.000139,2]
[319446798,1710763842970,-2215.28900007,0.000197,2]
[319446799,1710763843008,-2411.95791328,0.000197,2]
[319446800,1710763843079,-1004.98186152,0.000197,2]
[319446801,1710763843106,-3243.24891227,0.000197,2]
[319446802,1710763843116,-160.17830685,0.0001974,2]
[319446803,1710763843126,-1106.43817794,0.0001974,2]
[319446804,1710763843135,-200.0,0.00019741,2]
[319446805,1710763843145,-800.0,0.00019741,2]
[319446806,1710763843154,-200.0,0.00019741,2]
[319446807,1710763843163,-500.0,0.00019741,2]
[319446808,1710763843172,-200.0,0.00019741,2]
[319446809,1710763843181,-241.0,0.00019863,2]
[319446810,1710763843193,-151.32363814,0.00019875,2]
[319446811,1710763843204,-2462.0231835,0.00019897,2]
[319446812,1710763843213,-5282.1274531,0.00019897,2]
[319446813,1710763843223,-3337.4224073,0.00019897,2]
[319446814,1710763843233,-1806.4944451,0.00019897,2]
[319446815,1710763843243,-421.12525825,0.00019899,2]
[319446816,1710763843252,-574.82172329,0.00019899,2]
[319446817,1710763843261,-1043.01285,0.00019899,2]
[319446818,1710763843271,-75332.6678211,0.00019899,2]
[319446819,1710763843280,-155.66207572,0.000199,2]
[319446820,1710763843290,-321.72947893,0.000199,2]
[319446821,1710763843299,-1152.21,0.000199,5]
[319446822,1710763843308,-2000.0,0.000199,2]
[319446823,1710763843318,-200.0,0.000199,2]
[319446824,1710763843328,-433.04,0.00019912,2]
[319446825,1710763843337,-211.35479475,0.0001998,2]
[319446827,1710763843349,-1754.32004483,0.0002,2]
[319446828,1710763843358,-2500.0,0.0002,2]
[319446829,1710763843367,-8178.7248664,0.0002,2]
[319446830,1710763843377,-172.78238254,0.0002,2]
[319446831,1710763843386,-157.88807861,0.0002,2]
[319446832,1710763843396,-1848.45899034,0.0002,2]
[319446833,1710763843405,-1361.44941736,0.0002,2]
[319446834,1710763843414,-14329.3572613,0.0002,2]
[319446835,1710763843423,-1246.89677461,0.0002,2]
[319446836,1710763843433,-1000.0,0.0002,3]
[319446837,1710763843442,-1000.0,0.0002,2]
[319446838,1710763843451,-36836.90328213,0.0002,2]
[319446839,1710763843460,-2508.48638767,0.0002,2]
[319446840,1710763843469,-8646.16439069,0.0002,3]
[319446841,1710763843479,-5384.52033464,0.0002,2]
[319446842,1710763843488,-1452.0,0.0002,2]
[319446843,1710763843497,-194.66,0.0002,2]
[319446844,1710763843507,-3142.0,0.00020018,2]
[319446845,1710763843516,-1000.0,0.00020019,2]
[319446846,1710763843526,-710.3,0.00020089,2]
[319446847,1710763843535,-2000.0,0.00020099,2]
[319446848,1710763843544,-200.0,0.00020099,2]
[319446849,1710763843553,-158.09,0.00020137,2]
[319446850,1710763843562,-486.30407378,0.00020186,2]
[319446851,1710763843571,-2000.0,0.000203,2]
[319446852,1710763843580,-200.0,0.000203,2]
[319446853,1710763843590,-1153.85187013,0.00020503,2]
[319446854,1710763843601,-200.0,0.00020503,2]
[319446855,1710763843611,-193.28476011,0.00020532,2]
[319446856,1710763843620,-64595.0,0.00020534,2]
[319446857,1710763843630,-150.0,0.00020545,2]
[319446858,1710763843639,-150.0,0.00020545,2]
[319446859,1710763843649,-150.0,0.00020545,2]
[319446860,1710763843659,-150.0,0.00020545,2]
[319446861,1710763843669,-150.0,0.00020545,2]
[319446862,1710763843678,-150.0,0.00020545,2]
[319446863,1710763843688,-150.0,0.00020545,2]
[319446864,1710763843698,-150.0,0.00020545,2]
[319446865,1710763843707,-150.0,0.00020545,2]
[319446866,1710763843716,-150.0,0.00020545,2]
[319446867,1710763843725,-150.0,0.00020545,2]
[319446868,1710763843734,-150.0,0.00020545,2]
[319446869,1710763843743,-150.0,0.00020545,2]
[319446870,1710763843752,-3446.40762963,0.00020628,2]
[319446871,1710763843761,-1961.23179193,0.00020628,30]
[319446872,1710763843771,-1079.01405162,0.00020628,14]
[319446873,1710763843780,-200.0,0.00020708,2]
[319446874,1710763843924,-486.30407378,0.00020757,2]
[319446875,1710763843934,-151.32363814,0.00020888,2]
[319446876,1710763843944,-253.0,0.000209,2]
[319446877,1710763843953,-850.0,0.00021,3]
[319446878,1710763843963,-16621.28,0.00021096,2]
[319446879,1710763843971,-158.09,0.00021096,2]
[319446880,1710763843981,-486.30407378,0.00021329,2]
[319446881,1710763843991,-241.0,0.0002137,2]
[319446882,1710763844000,-359.0,0.000214,3]
[319446883,1710763844010,-2052.42,0.00021541,2]
[319446884,1710763844018,-166.61,0.00021591,2]
[319446885,1710763844028,-289.7,0.00021689,2]
[319446886,1710763844037,-150.0,0.00021733,2]
[319446887,1710763844047,-150.0,0.00021757,2]
[319446888,1710763844057,-150.0,0.00021772,2]
[319446889,1710763844066,-150.0,0.00021799,2]
[319446890,1710763844076,-302.7676463,0.00021808,2]
[319446891,1710763844085,-1500.0,0.00021822,2]
[319446892,1710763844096,-150.0,0.00021853,2]
[319446893,1710763844106,-150.0,0.00021862,2]
[319446894,1710763844116,-150.0,0.00021899,2]
[319446895,1710763844127,-5000.0,0.000219,3]
[319446896,1710763844136,-812.06902917,0.000219,2]
[319446897,1710763844146,-2000.0,0.000219,2]
[319446898,1710763844156,-2000.0,0.000219,2]
[319446899,1710763844165,-151.53510324,0.000219,2]
[319446900,1710763844174,-6812.0,0.000219,2]
[319446901,1710763844183,-9792.0,0.000219,2]
[319446902,1710763844192,-151.32363814,0.000219,2]
[319446903,1710763844201,-486.30407378,0.000219,2]
[319446904,1710763844210,-150.0,0.00021913,2]
[319446905,1710763844219,-250.0,0.00021918,2]
[319446906,1710763844228,-1580.73,0.00021918,10]
[319446907,1710763844238,-155.0,0.00021918,2]
[319446908,1710763844247,-216.35466224,0.00021962,2]
[319446909,1710763844257,-500.0,0.00021967,2]
[319446910,1710763844266,-500.0,0.00021967,2]
[319446911,1710763844276,-500.0,0.00021967,2]
[319446912,1710763844285,-500.0,0.00021967,2]
[319446913,1710763844295,-500.0,0.00021967,2]
[319446914,1710763844304,-500.0,0.00021967,2]
[319446915,1710763844314,-500.0,0.00021967,2]
[319446916,1710763844323,-500.0,0.00021967,2]
[319446917,1710763844332,-500.0,0.00021967,2]
[319446918,1710763844342,-500.0,0.00021967,2]
[319446919,1710763844353,-500.0,0.00021967,2]
[319446920,1710763844362,-500.0,0.00021967,2]
[319446921,1710763844371,-500.0,0.00021967,2]
[319446922,1710763844381,-500.0,0.00021967,2]
[319446923,1710763844390,-500.0,0.00021967,2]
[319446924,1710763844398,-500.0,0.00021967,2]
[319446925,1710763844407,-500.0,0.00021967,2]
[319446926,1710763844416,-500.0,0.00021967,2]
[319446927,1710763844425,-500.0,0.00021967,2]
[319446928,1710763844435,-500.0,0.00021967,2]
[319446929,1710763844444,-500.0,0.00021967,2]
[319446930,1710763844453,-500.0,0.00021967,2]
[319446931,1710763844462,-500.0,0.00021967,2]
[319446932,1710763844472,-500.0,0.00021967,2]
[319446933,1710763844481,-500.0,0.00021967,2]
[319446934,1710763844490,-500.0,0.00021967,2]
[319446935,1710763844499,-500.0,0.00021967,2]
[319446936,1710763844507,-500.0,0.00021967,2]
[319446937,1710763844516,-500.0,0.00021967,2]
[319446938,1710763844525,-500.0,0.00021967,2]
[319446939,1710763844534,-500.0,0.00021967,2]
[319446940,1710763844543,-500.0,0.00021967,2]
[319446941,1710763844552,-717.0,0.00021967,2]
[319446942,1710763844562,-500.0,0.00021967,2]
[319446943,1710763844571,-500.0,0.00021967,2]
[319446944,1710763844580,-500.0,0.00021967,2]
[319446945,1710763844589,-500.0,0.00021967,2]
[319446946,1710763844600,-500.0,0.00021967,2]
[319446947,1710763844610,-500.0,0.00021967,2]
[319446948,1710763844619,-500.0,0.00021967,2]
[319446949,1710763844629,-500.0,0.00021967,2]
[319446950,1710763844640,-500.0,0.00021967,2]
[319446951,1710763844650,-554.0,0.00021967,2]
[319446952,1710763844659,-500.0,0.00021967,2]
[319446953,1710763844668,-500.0,0.00021967,2]
[319446954,1710763844677,-500.0,0.00021967,2]
[319446955,1710763844687,-500.0,0.00021967,2]
[319446956,1710763844696,-500.0,0.00021967,2]
[319446957,1710763844706,-500.0,0.00021967,2]
[319446958,1710763844717,-500.0,0.00021967,2]
[319446959,1710763844726,-500.0,0.00021967,2]
[319446960,1710763844735,-500.0,0.00021967,2]
[319446961,1710763844744,-500.0,0.00021967,2]
[319446962,1710763844753,-500.0,0.00021967,2]
[319446963,1710763844762,-500.0,0.00021967,2]
[319446964,1710763844772,-500.0,0.00021967,2]
[319446965,1710763844781,-500.0,0.00021967,2]
[319446966,1710763844791,-500.0,0.00021967,2]
[319446967,1710763844800,-500.0,0.00021967,2]
[319446968,1710763844809,-500.0,0.00021967,2]
[319446969,1710763844818,-500.0,0.00021967,2]
[319446970,1710763844827,-500.0,0.00021967,2]
[319446971,1710763844837,-500.0,0.00021967,2]
[319446972,1710763844847,-500.0,0.00021967,2]
[319446973,1710763844856,-500.0,0.00021967,2]
[319446974,1710763844866,-500.0,0.00021967,2]
[319446975,1710763844875,-500.0,0.00021967,2]
[319446976,1710763844884,-500.0,0.00021967,2]
[319446977,1710763844894,-500.0,0.00021967,2]
[319446978,1710763844903,-500.0,0.00021967,2]
[319446979,1710763844912,-500.0,0.00021967,2]
[319446980,1710763844921,-500.0,0.00021967,2]
[319446981,1710763844931,-500.0,0.00021967,2]
[319446982,1710763844940,-500.0,0.00021967,2]
[319446983,1710763844949,-500.0,0.00021967,2]
[319446984,1710763844959,-500.0,0.00021967,2]
[319446985,1710763844969,-500.0,0.00021967,2]
[319446986,1710763844979,-500.0,0.00021967,2]
[319446987,1710763844988,-500.0,0.00021967,2]
[319446988,1710763844998,-500.0,0.00021967,2]
[319446989,1710763845007,-973.0,0.00021967,2]
[319446990,1710763845016,-500.0,0.00021967,2]
[319446991,1710763845026,-500.0,0.00021967,2]
[319446992,1710763845036,-500.0,0.00021967,2]
[319446993,1710763845046,-500.0,0.00021967,2]
[319446994,1710763845055,-500.0,0.00021967,2]
[319446995,1710763845065,-500.0,0.00021967,2]
[319446996,1710763845074,-500.0,0.00021967,2]
[319446997,1710763845083,-500.0,0.00021967,2]
[319446998,1710763845093,-500.0,0.00021967,2]
[319446999,1710763845104,-500.0,0.00021967,2]
[319447000,1710763845114,-500.0,0.00021967,2]
[319447001,1710763845123,-932.0,0.00021967,2]
[319447002,1710763845133,-150.0,0.00021972,2]
[319447003,1710763845143,-151.5024337,0.0002199,2]
[319447004,1710763845152,-150.0,0.00021999,2]
[319447005,1710763845162,-150.0,0.00021999,2]
[319447006,1710763845171,-150.0,0.00021999,2]
[319447007,1710763845180,-550.0,0.00022,18]
[319447008,1710763845189,-779.74941329,0.00022,2]
[319447009,1710763845199,-3853.65529988,0.00022,2]
[319447011,1710763845976,-558.03983979,0.00022,2]
[319447012,1710763846011,-301.60400004,0.00022,2]
[319447013,1710763846033,-12497.87560864,0.00022,2]
[319447014,1710763846051,-10970.31378585,0.00022,2]
[319447015,1710763846068,-1567.89614377,0.00022,2]
[319447016,1710763846088,-169.05793921,0.00022,2]
[319447017,1710763846106,-334287.54611794,0.00022,2]
[319447018,1710763846148,-1985.11881872,0.00022,2]
[319447019,1710763846167,-32464.70093615,0.00022,2]
[319447020,1710763846186,-288.83143126,0.00022,2]
[319447022,1710763847937,-1117.21625798,0.00019699,2]
[319447023,1710763847946,-371.14276172,0.00022,2]
[319447024,1710763847978,-931.37,0.00022,2]
[319447025,1710763848009,-522.88362862,0.00022,2]
[319447026,1710763848020,-742.42277525,0.00022,2]
[319447027,1710763848032,-47465.53698542,0.00022,2]
[319447028,1710763848048,-10245.75,0.00022,2]
[319447029,1710763848060,-21919.55161821,0.00022,2]
[319447030,1710763848071,-676.1007,0.00022,2]
[319447031,1710763848083,-1434.79165165,0.00022,2]
[319447032,1710763848098,-7164.70348807,0.00022,2]
[319447033,1710763848110,-358.38581633,0.00022,2]
[319447034,1710763848156,-4653.66294273,0.00022,2]
[319447035,1710763848168,-9057.172153,0.00022,2]
[319447037,1710764669205,-500.0,0.00016191,2]
[319447038,1710764669226,-155.0,0.00016192,2]
[319447039,1710764669248,-2251.89276788,0.00016193,2]
[319447040,1710764669271,-218.11574868,0.00016293,2]
[319447041,1710764669292,-151.91,0.00016394,2]
[319447042,1710764669313,-1246.55989451,0.000164,2]
[319447043,1710764728594,1077.03660404,0.000164,10]
[319447045,1710764744526,1077.03660404,0.000164,10]
[319447046,1710764762535,1077.03660404,0.000164,10]
[319447050,1710764784545,1077.03660404,0.000164,10]
[319447054,1710764801071,1077.03660404,0.000164,10]
[319447060,1710764820558,1077.03660404,0.000164,10]
[319447063,1710764838536,1077.03660404,0.000164,10]
[319447064,1710764843737,-321.77038654,0.00017574,2]
[319447065,1710764849653,750.0,0.00017,3]
[319447066,1710764855324,1070.81955605,0.000164,10]
[319447067,1710765026859,3203.0,0.000151,2]
[319447068,1710765027432,2882.0,0.000151,2]
[319447072,1710765031979,-63.36961346,0.00017574,2]
[319447073,1710765031989,-152.2,0.00017725,2]
[319447074,1710765032003,-300.0,0.00017763,2]
[319447075,1710765032012,-452.01870967,0.00018999,2]
[319447076,1710765032022,-800.0,0.00019,3]
[319447077,1710765032033,-154.02201452,0.0001909,2]
[319447078,1710765032043,-1014.02,0.0001919,2]
[319447079,1710765032053,-89.07904485,0.00019256,2]
[319447080,1710765032087,-445.58659226,0.00019256,2]
[319447081,1710765032098,-432.38722525,0.00019256,2]
[319447082,1710765032122,-32.94713764,0.00019256,2]
[319447083,1710765032131,-281.48035592,0.00019273,2]
[319447084,1710765032216,-434.39964408,0.00019273,2]
[319447085,1710765032226,-158.1,0.00019289,2]
[319447086,1710765032237,-152.48,0.00019374,2]
[319447087,1710765032250,-250.0,0.00019439,2]
[319447088,1710765032260,-187.22,0.00019479,2]
[319447089,1710765032270,-12475.13117813,0.000195,2]
[319447090,1710765032280,-3980.37,0.0001963,2]
[319447091,1710765032294,-284.12,0.00019648,2]
[319447092,1710765032303,-172.74416423,0.00019697,2]
[319447093,1710765032313,-2078.05,0.00019697,2]
[319447094,1710765032322,-499.99,0.00019697,2]
[319447095,1710765032332,-1289.25207947,0.00019698,2]
[319447096,1710765032341,-200.0,0.00019741,2]
[319447097,1710765032351,-385.14,0.00019838,2]
[319447098,1710765032360,-211.35479475,0.0001998,2]
[319447099,1710765032370,-6480.31661108,0.0002,2]
[319447100,1710765032380,-4000.0,0.0002,5]
[319447101,1710765032390,-4000.0,0.0002,4]
[319447103,1710765032399,-194.66,0.0002,2]
[319447105,1710765032409,-4487.10027887,0.0002,2]
[319447106,1710765032419,-14329.3572613,0.0002,2]
[319447107,1710765032428,-1754.32004483,0.00020497,2]
[319447108,1710765032438,-1361.44941736,0.00020497,2]
[319447109,1710765032448,-2500.0,0.00020498,2]
[319447110,1710765032458,-1246.89677461,0.00020499,2]
[319447112,1710765032467,-1000.0,0.000205,2]